Cogmind - Beta 17 @@@ ROGUE MODE // 2026.08.16 @ 23:23:50 Player: Lazz Result: Destroyed by S-10 Pest via exploding Nuclear Reactor Performance ------------- Evolutions (2) 1000 Regions Visited (3) 600 Robots Destroyed (41) 205 Value Destroyed (962) 962 Prototype IDs (1) 20 Alien Tech Used (0) 0 Bonus (0) 0 TOTAL SCORE: 2787 Bonus ------- None Cogmind --------- Core Integrity 0/550 Matter 292/300 Energy 76/100 System Corruption 0% Temperature Cool (0) Movement Core (50) Location -8/Materials Parts ------- > --- POWER (2) -------- (None) > --- PROPULSION (3) --- (None) > --- UTILITY (4) ------ Improved Targeting Computer > --- WEAPON (2) ------- (None) > --- INVENTORY (5) ---- Structural Scanner Improved Terrain Scanner Seismic Detector Advanced Beam Cannon Hammer Peak State ------------ > --- POWER ------------ Light Nuclear Core > --- PROPULSION ------- Aluminum Leg Aluminum Leg Carbon-fiber Leg > --- UTILITY ---------- Improved Heat Sink Large Storage Unit Improved Targeting Computer Hardened Light Armor Plating > --- WEAPON ----------- Advanced Beam Cannon Rocket Launcher > --- INVENTORY -------- Light Treads Armored Wheel Medium Battery Structural Scanner Improved Terrain Scanner Seismic Detector Seismic Detector Particle Gun Particle Cannon Advanced Beam Cannon Advanced Beam Cannon Advanced Beam Cannon Advanced Beam Cannon Advanced Beam Cannon Hammer [Rating: 24] Favorites ----------- Power Ion Engine Engine Ion Engine Power Core Light Nuclear Core Propulsion Armored Wheel Treads Light Treads Leg Aluminum Leg Wheel Armored Wheel Utility Large Storage Unit Device Seismic Detector Storage Large Storage Unit Processor Targeting Computer Protection Hardened Light Armor Plating Weapon Advanced Beam Cannon Energy Gun Small Laser Energy Cannon Advanced Beam Cannon Ballistic Cannon Improved Light Cannon Launcher Rocket Launcher Build | -11 -10 -9 -8 ------- Run | Yrd Mat Mat Mat Slots Evolved 4 | . . 2 2 Power 1 | . . . 1 Propulsion 1 | . . 1 . Utility 2 | . . 1 1 Weapon . | . . . . Parts Attached 35 | 8 7 10 10 Power 5 | 2 1 1 1 Engine 4 | 2 1 1 . Core 1 | . . . 1 Reactor . | . . . . Propulsion 10 | 2 2 3 3 Treads 4 | 2 . 2 . Leg 3 | . . . 3 Wheel 3 | . 2 1 . Hover . | . . . . Flight . | . . . . Utility 10 | 2 2 2 4 Device 5 | 1 . 1 3 Storage 2 | 1 1 . . Processor 2 | . 1 1 . Hackware . | . . . . Protection 1 | . . . 1 Artifact . | . . . . Weapon 10 | 2 2 4 2 Energy Gun 4 | 2 2 . . Energy Cannon 4 | . . 2 2 Ballistic Gun . | . . . . Ballistic Cannon 1 | . . 1 . Launcher 1 | . . 1 . Special Weapon . | . . . . Impact Weapon . | . . . . Slashing Weapon . | . . . . Piercing Weapon . | . . . . Special Melee Weapon . | . . . . Unidentified Prototypes 1 | . . 1 . Parts Lost 18 | . 5 . 13 Power 4 | . 1 . 3 Propulsion 7 | . 2 . 5 Utility 2 | . . . 2 Weapon 5 | . 2 . 3 Highest Loss Streak 11 | . 5 . 11 To Critical Strikes . | . . . . Average Backups 9 | . 5 12 13 Power . | . . . . Propulsion . | . . . 1 Utility 4 | . 4 5 4 Weapon 4 | . . 6 7 Tool/Special . | . . . . Unused Backups 7 | . . 4 3 Power . | . . . . Propulsion . | . . . . Utility 4 | . . 2 2 Weapon 3 | . . 2 1 Tool/Special . | . . . . Average Slot Usage (%) 89 | . 92 92 80 Engine 10 | . 10 11 9 Treads 8 | . 19 5 . Leg 1 | . . . 5 Wheel 16 | . 7 25 15 Device 6 | . 3 3 12 Storage 11 | . 14 11 8 Processor 11 | . 10 13 9 Energy Gun 9 | . 25 2 . Energy Cannon 7 | . . 11 13 Ballistic Cannon 2 | . . 7 . Peak Build Rating 24 | 7 12 20 24 Average Rating 13 | 5 7 16 18 On Entrance 9 | . 7 12 20 Avg Prop Armor Cover (%) 10 | . . 10 12 Naked Turns . | . . . . Heaviest Build 38 | 14 31 34 38 Greatest Support 40 | 40 40 36 36 Greatest Overweight (x) 2 | 1 1 1 2 Average Overweight (x) . | . . . . Largest Inventory Capacity 15 | 8 15 15 15 Average Capacity 11 | 6 8 15 14 Most Carried 15 | 3 8 15 15 Average Carried 9 | . 5 13 12 Final Capacity 15 | 8 15 15 5 Final Carried 15 | 3 8 15 5 Class Distribution -------------------- 91% | Mutant 8% | Scavenger-Mutant Dominant Class ---------------- Mutant | -10/Materials Mutant | -9/Materials Mutant | -8/Materials Resources | -11 -10 -9 -8 ----------- Run | Yrd Mat Mat Mat Matter Collected 688 | 280 50 236 122 Remotely . | . . . . Salvage Created 1111 | 131 303 277 400 Parts 87 | 15 18 24 30 Haulers Intercepted 2 | . 1 1 . Recyclers Shooed . | . . . . Parts Field Recycled . | . . . . Retrieved Matter . | . . . . Parts Self-Destructed . | . . . . Prevented . | . . . . Parts Restored . | . . . . Kills | -11 -10 -9 -8 ------- Run | Yrd Mat Mat Mat Combat Hostiles Destroyed 28 | . 8 10 10 Guns 8 | . 8 . . Cannons 11 | . . 4 7 AOE 9 | . . 6 3 Classes Destroyed 10 | 2 3 3 2 Worker 1 | . . 1 . Builder 4 | . . . 4 Tunneler 3 | 3 . . . Hauler 2 | . 1 1 . Recycler 1 | 1 . . . Watcher 2 | . . 2 . Swarmer 10 | . 3 7 . Grunt 13 | . 5 . 8 Brawler 1 | . . . 1 Sentry 4 | . . 3 1 Best Kill Streak 9 | 3 3 5 9 Combat Bots Only 6 | . 3 4 6 Max Kills in Single Turn 4 | 1 1 3 4 Gunslinging . | . . . . Exploded 3 | . . 3 2 Melee . | . . . . Uniques/NPCs Destroyed . | . . . . Combat | -11 -10 -9 -8 -------- Run | Yrd Mat Mat Mat Hostile Shots Fired 236 | . 69 26 141 Missed 54 | . 10 7 37 Hits 182 | . 59 19 104 Projectile 182 | . 59 19 104 AOE 2 | . . . 2 Critical Strikes 6 | . 1 1 4 Damage Taken 2913 | . 744 284 1885 Core 784 | . 151 74 559 Absorbed by Shields . | . . . . Core Remaining (%) 73 | 100 39 81 . Volleys Fired 86 | 5 30 18 33 Largest 2 | 2 2 2 2 Hottest 136 | 90 130 136 136 Shots Fired 151 | 10 52 34 55 Gun 62 | 10 52 . . Cannon 80 | . . 30 50 Launcher 9 | . . 4 5 Special . | . . . . Kinetic 13 | . . 13 . Thermal 129 | 10 52 17 50 Explosive 9 | . . 4 5 Electromagnetic . | . . . . Robot Hit Streak 14 | 7 14 7 12 Robot Miss Streak 5 | 1 1 5 2 Penetration Max . | . . . . Secondary Targets 1 | . 1 . . Max Gunslinging Chain 1 | . 1 . . Shots Hit Robots 102 | 8 38 17 39 Core Hits 68 | 5 17 16 30 Critical Kills . | . . . . Critical Parts Destroyed . | . . . . Critical Strikes 2 | . 1 1 . Burn 1 | . 1 . . Blast 1 | . . 1 . Melee Attacks . | . . . . Impact . | . . . . Slashing . | . . . . Piercing . | . . . . Sneak Attacks . | . . . . Combat Hostiles . | . . . . Follow-up Attacks . | . . . . Damage Inflicted 2641 | 104 470 712 1355 Guns 570 | 104 466 . . Cannons 1108 | . . 331 777 Explosions 959 | . . 381 578 Melee . | . . . . Ramming 4 | . 4 . . Kinetic 105 | . . 105 . Thermal 1573 | 104 466 226 777 Explosive 959 | . . 381 578 Electromagnetic . | . . . . Impact . | . . . . Slashing . | . . . . Piercing . | . . . . Highest Corruption . | . . . . Average Corruption . | . . . . Corruption Purged . | . . . . Corruption Blocked . | . . . . Overload Shots . | . . . . Overflow Damage 18 | . . 4 14 Projectiles 18 | . . 4 14 Explosions . | . . . . Melee . | . . . . Knockbacks . | . . . . Impact . | . . . . Kinetic . | . . . . Secondary . | . . . . Self-Inflicted Damage 78 | . . 22 56 Shots 4 | . . 1 3 Rammed 1 | . 1 . . Targets Rammed 1 | . 1 . . Kicked . | . . . . Crushed . | . . . . Highest Temperature 262 | 60 216 172 262 Average Temperature 87 | 28 117 57 83 Received Heat Transfer 1305 | . 396 54 855 Siege Activations . | . . . . Martial Activations . | . . . . Shielding Activations . | . . . . Robots Disrupted . | . . . . Combat Hostiles . | . . . . Robots Corrupted . | . . . . Combat Hostiles . | . . . . Parts Fried . | . . . . Impact Corruptions . | . . . . Robots Melted . | . . . . Combat Hostiles . | . . . . Parts Melted 3 | . 2 1 . Heat Transferred 3326 | 273 1240 407 1406 Parts Sabotaged . | . . . . Parts Stolen . | . . . . Parts Stripped . | . . . . Power Chain Reactions . | . . . . Alert | -11 -10 -9 -8 ------- Run | Yrd Mat Mat Mat Maximum Alert Level 1 | . . . 1 Low Security (%) 95 | 100 100 100 83 Level 1 4 | . . . 16 Level 2 . | . . . . Level 3 . | . . . . Level 4 . | . . . . Level 5 . | . . . . High Security . | . . . . Max Security . | . . . . Peak Influence 220 | 10 100 138 220 Initial 53 | . . 7 53 Average 59 | 1 38 59 107 Influence Increases 852 | 20 198 332 302 Destroy 0b10 Robot/C 560 | . 160 200 200 Destroy 0b10 Robot/NC 65 | 20 5 20 20 Destroy Leader 128 | . 32 56 40 Successful Hack 21 | . . 21 . Destroy Structure 63 | . 1 35 27 Partial Spotted 15 | . . . 15 Influence Decreases 767 | 20 180 222 345 Entered New Map 86 | . . 11 75 Time Decay 434 | 20 130 144 140 Lost Part 180 | . 50 . 130 Purge Threat 67 | . . 67 . Squads Dispatched 5 | . 2 . 3 Investigation 1 | . 1 . . Extermination . | . . . . Reinforcement 4 | . 1 . 3 Assault . | . . . . Garrison . | . . . . Intercept . | . . . . Searches Triggered . | . . . . Construction Impeded 1 | . . . 1 Haulers Reinforced . | . . . . Active Scanning Responses . | . . . . Cargo Convoy Interrupts . | . . . . Stealth | -11 -10 -9 -8 --------- Run | Yrd Mat Mat Mat Distress Signals 5 | . 1 1 3 Communications Jammed . | . . . . Distress Signals . | . . . . Times Spotted 50 | . 10 15 25 Peak Tracking Total 12 | . 4 4 12 Tactical Retreats . | . . . . Traps | -11 -10 -9 -8 ------- Run | Yrd Mat Mat Mat Traps Triggered 1 | . . 1 . Indirectly . | . . . . Trap Hack Attempts . | . . . . Triggered . | . . . . Disarmed 5 | . . 5 . Reprogrammed . | . . . . Reused . | . . . . Traps Extracted . | . . . . Installed . | . . . . Triggered . | . . . . Machines | -11 -10 -9 -8 ---------- Run | Yrd Mat Mat Mat Machines Disabled . | . . . . Max in Single Turn . | . . . . Machines Repaired . | . . . . Machines Dismantled . | . . . . Machines Sabotaged . | . . . . Overloaded Fab Kills . | . . . . Hacking | -11 -10 -9 -8 --------- Run | Yrd Mat Mat Mat Machines Accessed 7 | . 1 5 1 Terminals 5 | . 1 4 . Fabricators . | . . . . Repair Stations . | . . . . Recycling Units . | . . . . Scanalyzers 2 | . . 1 1 Garrison Access . | . . . . Total Hacks 23 | . 4 17 2 Successful 12 | . 2 9 1 Failed 9 | . 2 7 . Catastrophic 2 | . . 2 . Database Lockouts 2 | . . 1 1 Manual 5 | . 3 2 . Terminals 15 | . 4 11 . Fabricators . | . . . . Repair Stations . | . . . . Recycling Units . | . . . . Scanalyzers 8 | . . 6 2 Garrison Access . | . . . . Terminal Hacks 6 | . 2 4 . Robot Analysis 1 | . 1 . . Unreport Threat 2 | . . 2 . Disarm Traps 1 | . . 1 . Hauler Manifests 1 | . 1 . . Zone Layout 1 | . . 1 . Fabricator Hacks . | . . . . Repair Station Hacks . | . . . . Recycling Unit Hacks . | . . . . Scanalyzer 6 | . . 5 1 Retrieve Study 6 | . . 5 1 Garrison Access Hacks . | . . . . Unauthorized Hacks . | . . . . Terminals . | . . . . Fabricators . | . . . . Repair Stations . | . . . . Recycling Units . | . . . . Scanalyzers . | . . . . Garrison Access . | . . . . Data Cores Recovered . | . . . . Used . | . . . . Hacking Detections 7 | . 1 5 1 Full Trace Events 1 | . 1 . . Feedback Events . | . . . . Feedback Blocked . | . . . . Robot Schematics Acquired . | . . . . Robots Built . | . . . . Authchips . | . . . . Time . | . . . . Total Robot Build Rating . | . . . . Part Schematics Acquired . | . . . . Parts Built . | . . . . Authchips . | . . . . Time . | . . . . Total Part Build Rating . | . . . . Part Studies Acquired 6 | . . 5 1 Parts Repaired . | . . . . Time . | . . . . Parts Recycled . | . . . . Recycled Matter . | . . . . Retrieved Matter . | . . . . Retrieved Components . | . . . . Parts Scanalyzed . | . . . . Part Schematics Acquired . | . . . . Parts Damaged . | . . . . Bothacking | -11 -10 -9 -8 ------------ Run | Yrd Mat Mat Mat Used RIF Installer . | . . . . Robots Hacked . | . . . . Non-combat . | . . . . Combat . | . . . . Robot Hacks Applied . | . . . . Relay Couplers Released . | . . . . Fabnet Peak Effective % . | . . . . Robots Rewired . | . . . . Allies Hacked . | . . . . Hacks Repelled . | . . . . Allies | -11 -10 -9 -8 -------- Run | Yrd Mat Mat Mat Total Allies . | . . . . Largest Group . | . . . . Highest-Rated Group . | . . . . Highest-Rated Ally . | . . . . Total Orders . | . . . . Ally Attacks . | . . . . Total Damage . | . . . . Kills . | . . . . Allies Corrupted . | . . . . Allies Melted . | . . . . Intel | -11 -10 -9 -8 ------- Run | Yrd Mat Mat Mat Active Infowar (turns) 385 | 28 77 141 139 Structural 114 | . . . 114 Seismic 385 | 28 77 141 139 Robot Analysis Total 1 | . 1 . . Derelict Logs Recovered . | . . . . Drone Launches . | . . . . Drone Recoveries . | . . . . Exploration | -11 -10 -9 -8 ------------- Run | Yrd Mat Mat Mat Turns Passed 1153 | 121 353 387 292 Spaces Moved 678 | 58 182 295 143 Core 59 | 7 6 . 46 Treads 164 | 51 106 . 7 Legs 5 | . . . 5 Wheels 450 | . 70 295 85 Hover . | . . . . Flight . | . . . . Fastest Speed 50 | 50 90 80 50 Average Speed 108 | 148 132 95 88 Slowest Speed 200 | 160 160 105 200 Overloaded Moves . | . . . . Propulsion Burnouts . | . . . . Robots Hopped . | . . . . Potential Cave-ins . | . . . . Cave-ins Triggered . | . . . . Exploration Rate (%) 21 | 4 30 35 18 Regions Visited 3 Branch Regions . Pre-discovered Areas . | . . . . Known Exits Taken . | . . . . Unknown Exits Taken 3 | 1 1 1 . Scrap Searched . | . . . . Spaces Dug . | . . . . Terrain Destroyed 68 | . . 34 34 Melee . | . . . . Projectile 5 | . . 3 2 AOE 63 | . . 31 32 Terrain Rammed . | . . . . Walls Destroyed . | . . . . Machines Disabled . | . . . . Actions | -11 -10 -9 -8 --------- Run | Yrd Mat Mat Mat Total 938 | 80 238 369 251 Wait 94 | 6 13 21 54 Move 675 | 57 181 294 143 Hop . | . . . . Pick Up 22 | 3 5 14 . Fast Attach 22 | 7 5 3 7 Attach 6 | . . 2 4 Detach 1 | . . . 1 Swap 13 | 1 2 7 3 Drop 18 | 1 1 10 6 Fire 86 | 5 30 18 33 Melee . | . . . . Ram . | . . . . Kick . | . . . . Crush 1 | . 1 . . Escape Stasis . | . . . . Rewire . | . . . . Trap . | . . . . Miscellaneous . | . . . . Route ------- -11/Scrapyard -10/Materials -9/Materials (discovered 2 exits: *Mat / [*Sto]) -8/Materials History --------- Turn | Location | Event 12 | -11/Scrapyard | Discovered new exit (range 15) 122 | -11/Scrapyard | Entered Materials 315 | -10/Materials | Build established: Mutant 377 | -10/Materials | Core integrity fell below 50% 409 | -10/Materials | Lost 5 parts (1p2n2w) 468 | -10/Materials | Discovered new exit (range 6) 475 | -10/Materials | Entered another Materials area 475 | -9/Materials | Evolved 2 slots: Propulsion x1, Utility x1 694 | -9/Materials | Central database locked down 827 | -9/Materials | Discovered new exit (range 16) 860 | -9/Materials | Discovered new exit (range 14) 862 | -9/Materials | Entered another Materials area 862 | -8/Materials | Evolved 2 slots: Power x1, Utility x1 873 | -8/Materials | Central database locked down 1129 | -8/Materials | Core integrity fell below 50% 1154 | -8/Materials | Destroyed by S-10 Pest via exploding Nuclear Reactor Last Messages --------------- 01131_ U-05 Engineer lays Concrete. 01132_ Slug penetrates Wall. 01134_ W-25 Informer sends out distress signal. 01145_ O-16 Technician: "IFF HANDSHAKE FAILED. SECURING TERMINAL." 01149_ O-16 Technician uses terminal to summon reinforcements. 01149_ ALERT: Hostiles spotted, dispatching reinforcements to Terminal M001. 01149_ O-16 Technician locks terminal. 01149_ C-30 ARC bursts open, deploying its payload. 01149_ S-10 Pest unfolds itself. 01149_ T-07 Excavator is excavating. 01153_ K-01 Serf cleans the Nuclear Reactor. 01154_ Nuclear Reactor explodes. 01154_ U-05 Engineer destroyed. 01154_ Nuclear Reactor explodes. 01154_ S-10 Pest destroyed. 01154_ Imp. Heat Sink destroyed. Map ----- +----------------------------------------------------+ | "###?????????????????????????????????????????????? | | ##????????##########??????????????????????????? | | ########### #??????????????????????????? | | ! + T #??????????????????????????? | | ########### #??????????????????????????? | | #?????????# ! #????? ????????????????????? | | ! ##?????????# #???? ??????????????????? | | !]##?????????# """ #????" "????????????????? | | [ ##?????????# """ #???"%" "????????????????? | | ##?????????# """ #??# " "????????????????? | | ##?????????# #?? ????????????????? | | # ##############+###### ???????????????? | | #### ### ?# ???????????????? | | #""" # s ???????????????? | | #""" # To k ???????????????? | | #""" + = ####????????????????? | | ###### #""" # *%""" ###?????????????????? | | #### # # """ # #?????????????????? | | ?????? ######## """ wt#??????????????????? | | ???????? #?????# ! #???????????????????? | | ?????????#?????# !#???????????????????? | | ???????????????# #???????????????????? | | ???????????????# #???????????????????? | | ???????????????# #???????????????????? | | ????????????????# #???????????????????? | | ????????????????# @ +???????????????????? | | ????????? """ """ #???????????????????? | | ????????? """ """ #???????????????????? | | ????????? """ t""" #???????????????????? | | ?????????? k #???????????????????? | | ?????????####### #???????????????????? | | ???????????????######## #???????????????????? | | ??????????????????????# +???????????????????? | | ??????????????????????# ????????????????????? | | ??????????????????????# ??????????????????????? | | ??????????????????????? ??????????????????????? | | ???????????????????????####??????????????????????? | | ?????????????????????????????????????????????????? | | ?????????????????????????????????????????????????? | | ?????????????????????????????????????????????????? | | ?????????????????????????????????????????????????? | | ?????????????????????????????????????????????????? | | ?????????????????????????????????????????????????? | | ?????????????????????????????????????????????????? | | ?????????????????????????????????????????????????? | | ?????????????????????????????????????????????????? | | ?????????????????????????????????????????????????? | | ?????????????????????????????????????????????????? | | ?????????????????????????????????????????????????? | | ?????????????????????????????????????????????????? | +----------------------------------------------------+ Best States ------------- Heat Dissipation 53 Energy Generation 15 Energy Capacity 275 Matter Stores 300 Matter Capacity 300 Sight Range 16 Terrain Scan Density 10 Armor Coverage 150 Evasion (%) 50 Targeting Accuracy 11 Recoil Reduction 2 Item Schematics ----------------- None Robot Schematics ------------------ None Fabricated ------------ Nothing Repaired ---------- Nothing Studied --------- Particle Gun | -9/Materials | Hacked Arm. Wheel | -9/Materials | Hacked Rocket Launcher | -9/Materials | Hacked Lgt. Treads | -9/Materials | Hacked Hammer | -9/Materials | Hacked Particle Cannon | -8/Materials | Hacked Alien Tech Used ----------------- None Achievements -------------- None Challenges ------------ None Game ------ Seed DamperBiocellReconstructor Manual? 0 Play Time 00:18:10 Cumulative 264.3 hours Start 2026.08.16 @ 23:07:52 End 2026.08.16 @ 23:23:50 Sessions 1 Manual Loads 0 Difficulty Rogue Special Mode None Game No. 343 Rogue 343 Adventurer 0 Explorer 0 Win Type - Total 6 Types 5/0/0/1/0/0/0/0/0/0 Lore% 79 Gallery% 66 Achievement% 54 Wizard Run 0 Options --------- Layout 2 ASCII 0 Keyboard 0 Movement Mouse Keybinds 0 Fullscreen 1 Font 16/SmallcapsGlow Map View 25x24 Zoom Use 97% Tactical HUD 1 Map Filters NONE Filters NONE Steam SD RUN: 3938d435-defc-4fd2-8223-d21d5e75cd4d